[Event "Early-Titled-Tuesday-Blitz-September-12-2023"]
[Site "Chess.com"]
[Date "2023.09.12"]
[Round "1"]
[White "Dewarfd"]
[Black "tteshan"]
[Result "0-1"]
[WhiteElo "2139"]
[BlackElo "2553"]
[TimeControl "180+1"]
[EndTime "8:07:53 PDT"]
[Termination "tteshan won by resignation"]

1. d4 {[%clk 0:03:00]} 1... d5 {[%clk 0:02:59.9]} 2. e3 {[%clk 0:03:00.5]} 2...
Nf6 {[%clk 0:02:58.8]} 3. Nf3 {[%clk 0:03:00.4]} 3... c5 {[%clk 0:02:56.3]} 4.
dxc5 {[%clk 0:02:59.7]} 4... Qa5+ {[%clk 0:02:51.3]} 5. Nbd2 {[%clk 0:02:58.1]}
5... Nc6 {[%clk 0:02:42.6]} 6. a3 {[%clk 0:02:57.1]} 6... Qxc5 {[%clk
0:02:42.5]} 7. b4 {[%clk 0:02:56.5]} 7... Qd6 {[%clk 0:02:41.9]} 8. Bb2 {[%clk
0:02:49.2]} 8... e6 {[%clk 0:02:41.2]} 9. c4 {[%clk 0:02:47]} 9... Be7 {[%clk
0:02:27.8]} 10. Be2 {[%clk 0:02:46.7]} 10... O-O {[%clk 0:02:27.3]} 11. O-O
{[%clk 0:02:46.2]} 11... dxc4 {[%clk 0:02:24.9]} 12. Nxc4 {[%clk 0:02:45.7]}
12... Qc7 {[%clk 0:02:23.7]} 13. Rc1 {[%clk 0:02:42.8]} 13... Rd8 {[%clk
0:02:22.2]} 14. Qb3 {[%clk 0:02:40.3]} 14... a6 {[%clk 0:02:17.2]} 15. Nce5
{[%clk 0:02:38.3]} 15... Bd7 {[%clk 0:02:14.4]} 16. Nxd7 {[%clk 0:02:35.8]}
16... Qxd7 {[%clk 0:02:12.8]} 17. Rfd1 {[%clk 0:02:32.5]} 17... Qe8 {[%clk
0:02:12.8]} 18. b5 {[%clk 0:02:29.6]} 18... axb5 {[%clk 0:02:06.9]} 19. Bxb5
{[%clk 0:02:28.7]} 19... Rxd1+ {[%clk 0:02:06.2]} 20. Rxd1 {[%clk 0:02:22.6]}
20... Rd8 {[%clk 0:02:06.3]} 21. Bxf6 {[%clk 0:01:42.5]} 21... Bxf6 {[%clk
0:02:02.8]} 22. Bxc6 {[%clk 0:01:16]} 22... Rxd1+ {[%clk 0:02:00]} 23. Qxd1
{[%clk 0:01:16.4]} 23... Qxc6 {[%clk 0:01:59.9]} 24. h3 {[%clk 0:01:09.9]} 24...
g6 {[%clk 0:01:57.8]} 25. Qb1 {[%clk 0:00:51.3]} 25... b5 {[%clk 0:01:44.9]} 26.
Nd4 {[%clk 0:00:45.9]} 26... Bxd4 {[%clk 0:01:39.9]} 27. exd4 {[%clk 0:00:46.8]}
27... Qc4 {[%clk 0:01:38.3]} 28. Qb2 {[%clk 0:00:35.1]} 28... Qd3 {[%clk
0:01:26.4]} 29. Qb4 {[%clk 0:00:31.7]} 29... Kg7 {[%clk 0:01:21.8]} 30. g3
{[%clk 0:00:27.5]} 30... h5 {[%clk 0:01:21.2]} 31. Kh2 {[%clk 0:00:27.8]} 31...
h4 {[%clk 0:01:11.8]} 32. gxh4 {[%clk 0:00:25.9]} 32... Qf5 {[%clk 0:01:04.5]}
33. Qc5 {[%clk 0:00:25.1]} 33... Qxf2+ {[%clk 0:00:37.2]} 34. Kh1 {[%clk
0:00:25.3]} 34... Qf3+ {[%clk 0:00:35.2]} 35. Kh2 {[%clk 0:00:25.5]} 35... Qe2+
{[%clk 0:00:29.6]} 36. Kg3 {[%clk 0:00:22.8]} 36... Qe3+ {[%clk 0:00:29]} 37.
Kh2 {[%clk 0:00:22.7]} 37... Qf4+ {[%clk 0:00:23.2]} 38. Kg2 {[%clk 0:00:22.6]}
38... Qe4+ {[%clk 0:00:21]} 39. Kh2 {[%clk 0:00:21.4]} 39... Qf5 {[%clk
0:00:21.3]} 40. Kg3 {[%clk 0:00:08.4]} 40... Qxc5 {[%clk 0:00:18.1]} 41. dxc5
{[%clk 0:00:09.3]} 41... Kf6 {[%clk 0:00:18.7]} 42. Kf4 {[%clk 0:00:10.1]} 42...
e5+ {[%clk 0:00:18.2]} 43. Ke4 {[%clk 0:00:10.3]} 43... Ke6 {[%clk 0:00:18.8]}
44. c6 {[%clk 0:00:09.5]} 44... f5+ {[%clk 0:00:19.2]} 45. Kd3 {[%clk
0:00:08.9]} 45... Kd6 {[%clk 0:00:19.2]} 46. h5 {[%clk 0:00:09.7]} 46... gxh5
{[%clk 0:00:18.8]} 47. Ke3 {[%clk 0:00:09.5]} 47... Kxc6 {[%clk 0:00:18.9]} 48.
Kf3 {[%clk 0:00:10.4]} 48... e4+ {[%clk 0:00:18.4]} 49. Kg3 {[%clk 0:00:11.3]}
49... Kd5 {[%clk 0:00:18.4]} 50. Kh4 {[%clk 0:00:12.1]} 50... e3 {[%clk
0:00:18.5]} 51. Kxh5 {[%clk 0:00:13]} 51... e2 {[%clk 0:00:18.5]} 52. Kg5 {[%clk
0:00:13.9]} 52... e1=Q {[%clk 0:00:18.8]} 53. Kxf5 {[%clk 0:00:14.4]} 53... Qg3
{[%clk 0:00:18.7]} 0-1

[Event "Early-Titled-Tuesday-Blitz-September-12-2023"]
[Site "Chess.com"]
[Date "2023.09.12"]
[Round "1"]
[White "Der_Balak_3Halak"]
[Black "attack2mateU"]
[Result "0-1"]
[WhiteElo "2412"]
[BlackElo "2725"]
[TimeControl "180+1"]
[EndTime "8:07:54 PDT"]
[Termination "attack2mateU won by checkmate"]

1. e4 {[%clk 0:02:58.7]} 1... c5 {[%clk 0:03:00.4]} 2. Nf3 {[%clk 0:02:56.4]}
2... d6 {[%clk 0:03:00.9]} 3. Bb5+ {[%clk 0:02:53.5]} 3... Nd7 {[%clk
0:02:59.7]} 4. O-O {[%clk 0:02:51.9]} 4... a6 {[%clk 0:02:58.7]} 5. Bxd7+ {[%clk
0:02:52.1]} 5... Bxd7 {[%clk 0:02:59.4]} 6. c3 {[%clk 0:02:52.7]} 6... Nf6
{[%clk 0:02:58.2]} 7. Re1 {[%clk 0:02:52.2]} 7... e6 {[%clk 0:02:45.9]} 8. d4
{[%clk 0:02:51.3]} 8... Be7 {[%clk 0:02:45.3]} 9. Bf4 {[%clk 0:02:26.2]} 9...
O-O {[%clk 0:02:40.6]} 10. dxc5 {[%clk 0:02:20.5]} 10... dxc5 {[%clk 0:02:38.8]}
11. Nbd2 {[%clk 0:02:17.7]} 11... b5 {[%clk 0:02:06.4]} 12. Ne5 {[%clk
0:02:00.2]} 12... Be8 {[%clk 0:02:01.3]} 13. Qe2 {[%clk 0:01:42.4]} 13... Qb6
{[%clk 0:01:51]} 14. Rad1 {[%clk 0:01:33.3]} 14... Rd8 {[%clk 0:01:51.3]} 15.
Ndf3 {[%clk 0:01:28.9]} 15... Nd7 {[%clk 0:01:47.6]} 16. Nxd7 {[%clk 0:01:22.7]}
16... Bxd7 {[%clk 0:01:47.4]} 17. Ne5 {[%clk 0:01:22.4]} 17... Bc8 {[%clk
0:01:41.1]} 18. Qg4 {[%clk 0:01:05.6]} 18... f6 {[%clk 0:01:37]} 19. Bh6 {[%clk
0:00:57.3]} 19... g5 {[%clk 0:01:14.5]} 20. Bxf8 {[%clk 0:00:35.4]} 20... Kxf8
{[%clk 0:01:15.4]} 21. Rxd8+ {[%clk 0:00:32.7]} 21... Bxd8 {[%clk 0:01:16.3]}
22. Nf3 {[%clk 0:00:29.4]} 22... Qd6 {[%clk 0:01:05.4]} 23. e5 {[%clk
0:00:27.8]} 23... Qd5 {[%clk 0:01:05.5]} 24. h4 {[%clk 0:00:25.4]} 24... f5
{[%clk 0:01:04]} 25. Qh5 {[%clk 0:00:23.4]} 25... gxh4 {[%clk 0:01:02.7]} 26.
Ng5 {[%clk 0:00:21.6]} 26... Bxg5 {[%clk 0:00:59.8]} 27. Qxg5 {[%clk 0:00:20.5]}
27... Bb7 {[%clk 0:00:57.5]} 28. f3 {[%clk 0:00:19.8]} 28... h3 {[%clk
0:00:55.8]} 29. Qh6+ {[%clk 0:00:18.6]} 29... Kg8 {[%clk 0:00:50.6]} 30. Qxh3
{[%clk 0:00:19.5]} 30... Qd2 {[%clk 0:00:50.3]} 31. Qg3+ {[%clk 0:00:19.7]}
31... Kf7 {[%clk 0:00:50.6]} 32. Qf2 {[%clk 0:00:20.6]} 32... Qd5 {[%clk
0:00:45]} 33. Qh4 {[%clk 0:00:20.1]} 33... Ke8 {[%clk 0:00:35.5]} 34. Qxh7
{[%clk 0:00:19.4]} 34... Qd2 {[%clk 0:00:35]} 35. Qg8+ {[%clk 0:00:18.8]} 35...
Kd7 {[%clk 0:00:28.7]} 36. Qg3 {[%clk 0:00:19.7]} 36... Bd5 {[%clk 0:00:25.3]}
37. Qf2 {[%clk 0:00:19.1]} 37... Qd3 {[%clk 0:00:24.6]} 38. Qxc5 {[%clk
0:00:19.3]} 38... Qd2 {[%clk 0:00:17.2]} 39. Qf2 {[%clk 0:00:19.2]} 39... Qg5
{[%clk 0:00:17.9]} 40. f4 {[%clk 0:00:18.4]} 40... Qg4 {[%clk 0:00:17.6]} 41. b3
{[%clk 0:00:17.5]} 41... Kc6 {[%clk 0:00:16.6]} 42. Rc1 {[%clk 0:00:17.9]} 42...
Be4 {[%clk 0:00:14.3]} 43. c4 {[%clk 0:00:17.9]} 43... b4 {[%clk 0:00:14.9]} 44.
c5 {[%clk 0:00:15.2]} 44... Bd5 {[%clk 0:00:15.1]} 45. Qd2 {[%clk 0:00:13.5]}
45... a5 {[%clk 0:00:14.1]} 46. Re1 {[%clk 0:00:13.2]} 46... Qg3 {[%clk
0:00:14.3]} 47. Qe2 {[%clk 0:00:10.3]} 47... Bxg2 {[%clk 0:00:13.5]} 48. Qa6+
{[%clk 0:00:09.4]} 48... Kc7 {[%clk 0:00:10.4]} 49. Qb6+ {[%clk 0:00:09.6]}
49... Kc8 {[%clk 0:00:10.6]} 50. Qxe6+ {[%clk 0:00:09.4]} 50... Kb8 {[%clk
0:00:11.2]} 51. Qe8+ {[%clk 0:00:09.6]} 51... Ka7 {[%clk 0:00:11.1]} 52. Re3
{[%clk 0:00:08.3]} 52... Bf3+ {[%clk 0:00:10.7]} 53. Kf1 {[%clk 0:00:08.7]}
53... Qg2+ {[%clk 0:00:05.1]} 54. Ke1 {[%clk 0:00:09.3]} 54... Qg1+ {[%clk
0:00:05.7]} 55. Kd2 {[%clk 0:00:09.5]} 55... Qd1# {[%clk 0:00:06.4]} 0-1

[Event "Early-Titled-Tuesday-Blitz-September-12-2023"]
[Site "Chess.com"]
[Date "2023.09.12"]
[Round "1"]
[White "El_Matador12"]
[Black "Tea99"]
[Result "1-0"]
[WhiteElo "2732"]
[BlackElo "2407"]
[TimeControl "180+1"]
[EndTime "8:07:55 PDT"]
[Termination "El_Matador12 won by resignation"]

1. d4 {[%clk 0:02:57.5]} 1... Nf6 {[%clk 0:02:57.9]} 2. Bg5 {[%clk 0:02:56.7]}
2... Ne4 {[%clk 0:02:53.7]} 3. h4 {[%clk 0:02:56.2]} 3... c5 {[%clk 0:02:53.5]}
4. d5 {[%clk 0:02:54.7]} 4... Qa5+ {[%clk 0:02:52.3]} 5. c3 {[%clk 0:02:53.1]}
5... h6 {[%clk 0:02:47.8]} 6. Bc1 {[%clk 0:02:51.2]} 6... d6 {[%clk 0:02:45.1]}
7. Nf3 {[%clk 0:02:48.1]} 7... Bg4 {[%clk 0:02:42.1]} 8. Qc2 {[%clk 0:02:44.3]}
8... Nf6 {[%clk 0:02:41.1]} 9. e4 {[%clk 0:02:42.4]} 9... Nbd7 {[%clk
0:02:41.3]} 10. Nbd2 {[%clk 0:02:41.5]} 10... e6 {[%clk 0:02:38.1]} 11. dxe6
{[%clk 0:02:36.9]} 11... Bxe6 {[%clk 0:02:39]} 12. Bc4 {[%clk 0:02:37.3]} 12...
Bxc4 {[%clk 0:02:30.8]} 13. Nxc4 {[%clk 0:02:38.2]} 13... Qa6 {[%clk 0:02:31.7]}
14. Qe2 {[%clk 0:02:26.5]} 14... Be7 {[%clk 0:02:14.5]} 15. O-O {[%clk
0:02:21.7]} 15... O-O {[%clk 0:02:11.5]} 16. Re1 {[%clk 0:02:21.5]} 16... b5
{[%clk 0:02:09.1]} 17. Ne3 {[%clk 0:02:19.8]} 17... Rfe8 {[%clk 0:01:49.6]} 18.
a4 {[%clk 0:02:15.3]} 18... Nxe4 {[%clk 0:01:36.5]} 19. Nd5 {[%clk 0:02:09.6]}
19... Bd8 {[%clk 0:01:26.9]} 20. Qc2 {[%clk 0:01:47.8]} 20... f5 {[%clk
0:01:17.2]} 21. Bf4 {[%clk 0:01:45.1]} 21... Qb7 {[%clk 0:01:13.5]} 22. Qb3
{[%clk 0:01:38.8]} 22... c4 {[%clk 0:01:13.4]} 23. Qxb5 {[%clk 0:01:38.5]} 23...
Qxb5 {[%clk 0:01:07]} 24. axb5 {[%clk 0:01:39.4]} 24... Nb6 {[%clk 0:01:07.1]}
25. Nb4 {[%clk 0:01:33.9]} 25... g5 {[%clk 0:01:01.7]} 26. hxg5 {[%clk
0:01:32.4]} 26... hxg5 {[%clk 0:01:02.6]} 27. Be3 {[%clk 0:01:33.3]} 27... g4
{[%clk 0:00:59.9]} 28. Nd4 {[%clk 0:01:32.3]} 28... Rf8 {[%clk 0:00:40.8]} 29.
Bf4 {[%clk 0:01:14.7]} 29... Bh4 {[%clk 0:00:39.4]} 30. g3 {[%clk 0:01:14.1]}
30... Bg5 {[%clk 0:00:39.9]} 31. Ne6 {[%clk 0:01:08.2]} 31... Bxf4 {[%clk
0:00:35.9]} 32. Nxf4 {[%clk 0:01:08.2]} 32... Nd7 {[%clk 0:00:27]} 33. Kg2
{[%clk 0:01:02.2]} 33... Ne5 {[%clk 0:00:27.3]} 34. Nbd5 {[%clk 0:00:57.9]}
34... Rf7 {[%clk 0:00:22.4]} 35. b6 {[%clk 0:00:56.5]} 35... Nf3 {[%clk
0:00:17.8]} 36. Rh1 {[%clk 0:00:55.4]} 36... Nc5 {[%clk 0:00:14]} 37. Ng6 {[%clk
0:00:52.5]} 37... Rh7 {[%clk 0:00:12.8]} 38. Nge7+ {[%clk 0:00:51.3]} 38... Kh8
{[%clk 0:00:12.9]} 39. Nxf5 {[%clk 0:00:49.9]} 39... Rxh1 {[%clk 0:00:11.1]} 40.
Rxh1+ {[%clk 0:00:49.2]} 40... Kg8 {[%clk 0:00:11.7]} 41. Nxd6 {[%clk
0:00:37.4]} 41... axb6 {[%clk 0:00:11.2]} 42. Nf6+ {[%clk 0:00:37.8]} 42... Kg7
{[%clk 0:00:11.3]} 43. Nxg4 {[%clk 0:00:38.7]} 43... Ng5 {[%clk 0:00:11.1]} 44.
Nf5+ {[%clk 0:00:34.7]} 44... Kg6 {[%clk 0:00:10.6]} 45. Ne7+ {[%clk 0:00:34.3]}
45... Kf7 {[%clk 0:00:10.7]} 46. Nd5 {[%clk 0:00:34.5]} 46... Nge4 {[%clk
0:00:10.9]} 47. f3 {[%clk 0:00:33.7]} 47... Ra2 {[%clk 0:00:10.4]} 48. fxe4
{[%clk 0:00:33.3]} 48... Rxb2+ {[%clk 0:00:11]} 49. Kf3 {[%clk 0:00:33.9]} 49...
Rc2 {[%clk 0:00:11]} 50. Ne5+ {[%clk 0:00:33.6]} 50... Ke6 {[%clk 0:00:11.4]}
51. Nxc4 {[%clk 0:00:33.8]} 51... Nd3 {[%clk 0:00:09.7]} 52. Rh6+ {[%clk
0:00:33.2]} 52... Kd7 {[%clk 0:00:09.4]} 53. Ncxb6+ {[%clk 0:00:33.4]} 53... Ke8
{[%clk 0:00:07.3]} 54. Ke3 {[%clk 0:00:33.7]} 54... Ne5 {[%clk 0:00:07.4]} 55.
Re6+ {[%clk 0:00:33.4]} 55... Kf7 {[%clk 0:00:07.4]} 56. Rxe5 {[%clk 0:00:34.3]}
1-0

[Event "Early-Titled-Tuesday-Blitz-September-12-2023"]
[Site "Chess.com"]
[Date "2023.09.12"]
[Round "1"]
[White "Rurep26"]
[Black "DanyKopy"]
[Result "0-1"]
[WhiteElo "2809"]
[BlackElo "2492"]
[TimeControl "180+1"]
[EndTime "8:07:56 PDT"]
[Termination "DanyKopy won by checkmate"]

1. d4 {[%clk 0:02:51.7]} 1... Nf6 {[%clk 0:02:57.9]} 2. Bf4 {[%clk 0:02:51.8]}
2... g6 {[%clk 0:02:53.9]} 3. Nc3 {[%clk 0:02:50.5]} 3... d5 {[%clk 0:02:48.1]}
4. e3 {[%clk 0:02:49.7]} 4... Bg7 {[%clk 0:02:39.2]} 5. h4 {[%clk 0:02:48.6]}
5... a6 {[%clk 0:02:35.9]} 6. Bd3 {[%clk 0:02:43.4]} 6... c5 {[%clk 0:02:33.3]}
7. Nf3 {[%clk 0:02:37.8]} 7... Nc6 {[%clk 0:02:32.1]} 8. Ne5 {[%clk 0:02:29.9]}
8... cxd4 {[%clk 0:02:27.2]} 9. Nxc6 {[%clk 0:02:28]} 9... bxc6 {[%clk
0:02:28.1]} 10. exd4 {[%clk 0:02:28.2]} 10... Qb6 {[%clk 0:02:25.3]} 11. Be5
{[%clk 0:02:16.7]} 11... Qxb2 {[%clk 0:02:20.9]} 12. Na4 {[%clk 0:02:14.4]}
12... Qa3 {[%clk 0:02:19.3]} 13. c3 {[%clk 0:02:08.4]} 13... h5 {[%clk
0:02:02.5]} 14. O-O {[%clk 0:02:04.9]} 14... O-O {[%clk 0:02:01.8]} 15. Bf4
{[%clk 0:01:47.8]} 15... e6 {[%clk 0:01:48.2]} 16. Rb1 {[%clk 0:01:37.1]} 16...
Nd7 {[%clk 0:01:40]} 17. Qc2 {[%clk 0:01:27.2]} 17... Qe7 {[%clk 0:01:37.7]} 18.
Nb6 {[%clk 0:01:05.1]} 18... Nxb6 {[%clk 0:01:34.6]} 19. Rxb6 {[%clk 0:01:06]}
19... Qxh4 {[%clk 0:01:33.5]} 20. Bd6 {[%clk 0:01:02.8]} 20... Qd8 {[%clk
0:01:21.7]} 21. Rxc6 {[%clk 0:00:49.4]} 21... Bb7 {[%clk 0:01:14.9]} 22. Bxf8
{[%clk 0:00:45.4]} 22... Bxc6 {[%clk 0:01:06.5]} 23. Bc5 {[%clk 0:00:45.9]}
23... Bb5 {[%clk 0:01:05.5]} 24. Rb1 {[%clk 0:00:38]} 24... Qd7 {[%clk
0:01:03.7]} 25. Qe2 {[%clk 0:00:34.2]} 25... Bxd3 {[%clk 0:00:48.8]} 26. Qxd3
{[%clk 0:00:35.1]} 26... Qa4 {[%clk 0:00:48.1]} 27. Rb7 {[%clk 0:00:27.1]} 27...
Qc6 {[%clk 0:00:32.8]} 28. Rb6 {[%clk 0:00:26.6]} 28... Qa4 {[%clk 0:00:31.6]}
29. Qf3 {[%clk 0:00:25.4]} 29... Qc2 {[%clk 0:00:22.1]} 30. Rb7 {[%clk
0:00:21.1]} 30... Qf5 {[%clk 0:00:21.7]} 31. Qe2 {[%clk 0:00:19.7]} 31... h4
{[%clk 0:00:21]} 32. Kh1 {[%clk 0:00:18.7]} 32... h3 {[%clk 0:00:20.9]} 33. g3
{[%clk 0:00:19.1]} 33... Bh6 {[%clk 0:00:19.6]} 34. Kh2 {[%clk 0:00:19.5]} 34...
Kg7 {[%clk 0:00:15.7]} 35. Bd6 {[%clk 0:00:19.6]} 35... Bg5 {[%clk 0:00:15.1]}
36. Be5+ {[%clk 0:00:19.9]} 36... Bf6 {[%clk 0:00:15.5]} 37. Bd6 {[%clk
0:00:19.7]} 37... Rh8 {[%clk 0:00:15]} 38. Bf4 {[%clk 0:00:16.7]} 38... g5
{[%clk 0:00:14.7]} 39. Bd6 {[%clk 0:00:16.7]} 39... g4 {[%clk 0:00:14.8]} 40.
Be5 {[%clk 0:00:16.6]} 40... Bxe5 {[%clk 0:00:14.4]} 41. dxe5 {[%clk 0:00:17.5]}
41... Rc8 {[%clk 0:00:10.4]} 42. Qe3 {[%clk 0:00:16.6]} 42... Qe4 {[%clk
0:00:08.7]} 43. Qg5+ {[%clk 0:00:16.4]} 43... Qg6 {[%clk 0:00:08.8]} 44. Qe3
{[%clk 0:00:16.3]} 44... Rc4 {[%clk 0:00:08.7]} 45. Rb4 {[%clk 0:00:14.5]} 45...
Re4 {[%clk 0:00:07.2]} 46. Rxe4 {[%clk 0:00:14]} 46... Qxe4 {[%clk 0:00:07.6]}
47. Qg5+ {[%clk 0:00:14.6]} 47... Qg6 {[%clk 0:00:07.3]} 48. Qf4 {[%clk
0:00:14.7]} 48... Qf5 {[%clk 0:00:07.7]} 49. Qe3 {[%clk 0:00:15.2]} 49... Kg6
{[%clk 0:00:07.9]} 50. a4 {[%clk 0:00:13.9]} 50... Qe4 {[%clk 0:00:07.8]} 51.
Qb6 {[%clk 0:00:07]} 51... Qg2# {[%clk 0:00:07.3]} 0-1

[Event "Early-Titled-Tuesday-Blitz-September-12-2023"]
[Site "Chess.com"]
[Date "2023.09.12"]
[Round "1"]
[White "Rdeux42"]
[Black "Hope_6"]
[Result "0-1"]
[WhiteElo "2396"]
[BlackElo "2702"]
[TimeControl "180+1"]
[EndTime "8:07:57 PDT"]
[Termination "Hope_6 won by resignation"]

1. e4 {[%clk 0:03:00.1]} 1... c5 {[%clk 0:02:59.6]} 2. Nf3 {[%clk 0:02:59.8]}
2... e6 {[%clk 0:02:59.4]} 3. b3 {[%clk 0:02:57.8]} 3... Nc6 {[%clk 0:02:51.4]}
4. Bb2 {[%clk 0:02:57]} 4... a6 {[%clk 0:02:51]} 5. c4 {[%clk 0:02:55.4]} 5...
Nf6 {[%clk 0:02:40]} 6. d3 {[%clk 0:02:53.4]} 6... d6 {[%clk 0:02:32.8]} 7. g3
{[%clk 0:02:51.1]} 7... e5 {[%clk 0:02:31.3]} 8. Bg2 {[%clk 0:02:49.1]} 8... g6
{[%clk 0:02:30.7]} 9. O-O {[%clk 0:02:48.1]} 9... Bg7 {[%clk 0:02:26]} 10. Nc3
{[%clk 0:02:48]} 10... O-O {[%clk 0:02:24.1]} 11. h3 {[%clk 0:02:41.4]} 11... h6
{[%clk 0:02:22.9]} 12. a3 {[%clk 0:02:38.3]} 12... Be6 {[%clk 0:02:21.3]} 13.
Ne1 {[%clk 0:02:30]} 13... Qd7 {[%clk 0:02:17]} 14. Kh2 {[%clk 0:02:28.8]} 14...
Nh7 {[%clk 0:02:16]} 15. Nd5 {[%clk 0:02:19]} 15... Rae8 {[%clk 0:02:12.3]} 16.
Qd2 {[%clk 0:02:06.9]} 16... f5 {[%clk 0:02:06.3]} 17. exf5 {[%clk 0:01:57.8]}
17... gxf5 {[%clk 0:01:59.4]} 18. f4 {[%clk 0:01:58.3]} 18... Nf6 {[%clk
0:01:54.5]} 19. Nc2 {[%clk 0:01:33.7]} 19... Nd4 {[%clk 0:01:38.2]} 20. Bxd4
{[%clk 0:01:28.2]} 20... cxd4 {[%clk 0:01:35.3]} 21. Ncb4 {[%clk 0:01:18.9]}
21... Nh5 {[%clk 0:01:16.4]} 22. Bf3 {[%clk 0:01:04]} 22... Qf7 {[%clk
0:01:12.9]} 23. Nc7 {[%clk 0:00:47.1]} 23... Nxg3 {[%clk 0:00:58]} 24. Kxg3
{[%clk 0:00:35.7]} 24... Qxc7 {[%clk 0:00:57]} 25. Nd5 {[%clk 0:00:33]} 25...
Qd8 {[%clk 0:00:49.5]} 26. Kh2 {[%clk 0:00:33.1]} 26... Kh8 {[%clk 0:00:46.9]}
27. Rg1 {[%clk 0:00:33.5]} 27... e4 {[%clk 0:00:40.9]} 28. Bh5 {[%clk 0:00:32]}
28... Bf7 {[%clk 0:00:34.4]} 29. Bxf7 {[%clk 0:00:28.7]} 29... Rxf7 {[%clk
0:00:34.2]} 30. Rg6 {[%clk 0:00:29.6]} 30... Qh4 {[%clk 0:00:28.6]} 31. Rag1
{[%clk 0:00:26.8]} 31... exd3 {[%clk 0:00:25.9]} 32. Qxd3 {[%clk 0:00:22.7]}
32... Re4 {[%clk 0:00:19.4]} 33. b4 {[%clk 0:00:18.9]} 33... Kh7 {[%clk
0:00:09.8]} 34. a4 {[%clk 0:00:16.7]} 34... Kh8 {[%clk 0:00:08.9]} 35. b5 {[%clk
0:00:17.1]} 35... axb5 {[%clk 0:00:08.9]} 36. cxb5 {[%clk 0:00:17]} 36... Qf2+
{[%clk 0:00:08.9]} 37. R6g2 {[%clk 0:00:15.6]} 37... Qh4 {[%clk 0:00:08.4]} 38.
a5 {[%clk 0:00:15.7]} 38... Qd8 {[%clk 0:00:06.9]} 39. a6 {[%clk 0:00:15.3]}
39... bxa6 {[%clk 0:00:07.3]} 40. bxa6 {[%clk 0:00:16.2]} 40... Qa5 {[%clk
0:00:08]} 41. Rc1 {[%clk 0:00:10.8]} 41... Qxd5 {[%clk 0:00:06.5]} 42. Rc8+
{[%clk 0:00:08.7]} 42... Kh7 {[%clk 0:00:07.3]} 43. Rb8 {[%clk 0:00:05.8]} 43...
Re3 {[%clk 0:00:06.8]} 44. Qb5 {[%clk 0:00:04.8]} 44... Qxb5 {[%clk 0:00:05.8]}
45. Rxb5 {[%clk 0:00:05.7]} 45... Ra3 {[%clk 0:00:06.4]} 0-1

[Event "Early-Titled-Tuesday-Blitz-September-12-2023"]
[Site "Chess.com"]
[Date "2023.09.12"]
[Round "1"]
[White "Alex_Banzea"]
[Black "Leandro-Slagboom"]
[Result "1-0"]
[WhiteElo "2672"]
[BlackElo "2374"]
[TimeControl "180+1"]
[EndTime "8:07:57 PDT"]
[Termination "Alex_Banzea won by resignation"]

1. d4 {[%clk 0:03:00.9]} 1... d5 {[%clk 0:02:59.6]} 2. Nc3 {[%clk 0:03:00.4]}
2... Nf6 {[%clk 0:02:53]} 3. Bf4 {[%clk 0:02:57.7]} 3... c5 {[%clk 0:02:47.7]}
4. e3 {[%clk 0:02:57.3]} 4... a6 {[%clk 0:02:43.9]} 5. dxc5 {[%clk 0:02:55]}
5... Nc6 {[%clk 0:02:33.1]} 6. a3 {[%clk 0:02:52.4]} 6... e5 {[%clk 0:02:30.2]}
7. Bg5 {[%clk 0:02:51.2]} 7... Be6 {[%clk 0:02:28.2]} 8. b4 {[%clk 0:02:43.4]}
8... Be7 {[%clk 0:02:25.7]} 9. Nf3 {[%clk 0:02:34.6]} 9... O-O {[%clk
0:02:24.7]} 10. Be2 {[%clk 0:02:09.7]} 10... d4 {[%clk 0:02:13.8]} 11. exd4
{[%clk 0:02:00.6]} 11... exd4 {[%clk 0:02:10.9]} 12. Na4 {[%clk 0:01:55.8]}
12... Ne4 {[%clk 0:01:45.8]} 13. Bxe7 {[%clk 0:01:52.5]} 13... Qxe7 {[%clk
0:01:46.7]} 14. O-O {[%clk 0:01:50.8]} 14... Rad8 {[%clk 0:01:42.4]} 15. Bd3
{[%clk 0:01:48.6]} 15... Ng5 {[%clk 0:01:35.2]} 16. Nxg5 {[%clk 0:01:44.1]}
16... Qxg5 {[%clk 0:01:34.8]} 17. Qf3 {[%clk 0:01:35.7]} 17... h5 {[%clk
0:01:21]} 18. Qg3 {[%clk 0:01:31.2]} 18... Qf6 {[%clk 0:01:18.4]} 19. Rfe1
{[%clk 0:01:15.6]} 19... h4 {[%clk 0:01:15.4]} 20. Qf3 {[%clk 0:01:15.8]} 20...
Qxf3 {[%clk 0:01:12.9]} 21. gxf3 {[%clk 0:01:16.7]} 21... g5 {[%clk 0:01:06.7]}
22. Kg2 {[%clk 0:01:11.3]} 22... Rfe8 {[%clk 0:01:02.7]} 23. Nb6 {[%clk
0:01:04.8]} 23... Kg7 {[%clk 0:00:45]} 24. Re2 {[%clk 0:00:55.2]} 24... f6
{[%clk 0:00:42.3]} 25. Rae1 {[%clk 0:00:54.1]} 25... Ne5 {[%clk 0:00:39.8]} 26.
Re4 {[%clk 0:00:23.8]} 26... Kf7 {[%clk 0:00:23.4]} 27. f4 {[%clk 0:00:23.6]}
27... gxf4 {[%clk 0:00:23]} 28. Rxf4 {[%clk 0:00:24.5]} 28... Rg8+ {[%clk
0:00:23.1]} 29. Kf1 {[%clk 0:00:04.5]} 29... Ng4 {[%clk 0:00:23.2]} 30. Rxe6
{[%clk 0:00:01.8]} 30... Nxh2+ {[%clk 0:00:23.6]} 31. Ke2 {[%clk 0:00:01.8]}
31... Kxe6 {[%clk 0:00:24.2]} 32. Rxh4 {[%clk 0:00:02.4]} 32... Rh8 {[%clk
0:00:21.2]} 33. Bc4+ {[%clk 0:00:02.5]} 33... Ke5 {[%clk 0:00:19.7]} 34. f4+
{[%clk 0:00:02.3]} 34... Kf5 {[%clk 0:00:15.9]} 35. Rxh8 {[%clk 0:00:03.2]}
35... Rxh8 {[%clk 0:00:15.7]} 36. Bd5 {[%clk 0:00:03.5]} 36... Ng4 {[%clk
0:00:14.6]} 37. Bxb7 {[%clk 0:00:03.2]} 37... Kxf4 {[%clk 0:00:11.5]} 38. c6
{[%clk 0:00:04.1]} 38... Rh7 {[%clk 0:00:08.2]} 39. c7 {[%clk 0:00:04.4]} 39...
Rxc7 {[%clk 0:00:08]} 40. Nd5+ {[%clk 0:00:05.1]} 40... Ke5 {[%clk 0:00:08.1]}
41. Nxc7 {[%clk 0:00:06]} 41... f5 {[%clk 0:00:08.3]} 42. Nxa6 {[%clk
0:00:06.3]} 42... Ne3 {[%clk 0:00:08.4]} 43. Nc5 {[%clk 0:00:07.2]} 43... Nxc2
{[%clk 0:00:08.6]} 44. Nd3+ {[%clk 0:00:06.1]} 44... Kd6 {[%clk 0:00:07.7]} 45.
a4 {[%clk 0:00:07]} 45... Na3 {[%clk 0:00:06.2]} 46. Bc8 {[%clk 0:00:05.1]}
46... Nc4 {[%clk 0:00:05.1]} 47. Bxf5 {[%clk 0:00:04.9]} 47... Nb6 {[%clk
0:00:05.4]} 48. a5 {[%clk 0:00:04.5]} 48... Nd5 {[%clk 0:00:06]} 49. Be4 {[%clk
0:00:04.2]} 49... Nc3+ {[%clk 0:00:06.3]} 50. Kf3 {[%clk 0:00:04.5]} 50... Kc7
{[%clk 0:00:05.6]} 51. Kf4 {[%clk 0:00:02.8]} 51... Kb8 {[%clk 0:00:04.3]} 52.
Ke5 {[%clk 0:00:03.5]} 1-0